bitfinex/quotes_SOLUSD_20260302
["timestamp","ask_amount","ask_price","bid_price","bid_amount"]
[1772426321028,1.04350519,84.528,84.49,2.3810655]
[1772426322228,1.04350519,84.528,84.492,2.3810655]
[1772426322424,1.04359795,84.526,84.492,2.3810655]
[1772426324218,1.04359795,84.526,84.484,3.69383402]
[1772426324219,0.2,84.53,84.496,2.3810655]
[1772426324431,0.2,84.53,84.498,2.3810655]
[1772426326346,0.2,84.53,84.5,2.3810655]
[1772426326640,11.0222069,84.549,84.501,2.3810655]
[1772426326837,9.97816091,84.549,84.507,2.3810655]
[1772426327140,1.04404599,84.555,84.507,2.3810655]
[1772426327327,2.06284483,84.552,84.507,2.3810655]
[1772426327942,11.82718122,84.551,84.507,2.3810655]
[1772426328255,1.04421808,84.545,84.507,2.3810655]
[1772426328542,1.04421808,84.543,84.508,11.83319922]
[1772426328923,1.24430265,84.536,84.487,29.59010249]
[1772426329120,1.24430265,84.529,84.487,29.59010249]
[1772426329546,1.24430265,84.529,84.488,29.59000094]
[1772426330929,1.24430265,84.529,84.489,2.59499694]
[1772426331129,1.24446888,84.527,84.491,2.59499694]
[1772426333054,1.24446888,84.527,84.493,2.59499694]
[1772426334432,1.24446888,84.527,84.494,11.83515989]
[1772426334631,1.24446888,84.527,84.495,2.59499694]
[1772426335451,11.83067931,84.526,84.495,2.59499694]
[1772426335624,1.2447886,84.525,84.494,11.83515989]
[1772426335949,1.2447886,84.525,84.495,2.59499694]
[1772426336837,1.24494087,84.523,84.496,11.83487975]
[1772426337639,1.24494087,84.523,84.497,2.59499694]
[1772426338042,1.2450157,84.529,84.497,2.59499694]
[1772426338344,1.52933884,84.537,84.497,2.59499694]
[1772426339929,1.24516278,84.535,84.499,2.59499694]
[1772426340330,11.82927983,84.536,84.499,2.59499694]
[1772426341057,0.28432314,84.537,84.499,2.59499694]
[1772426341258,4.6093007,84.55,84.499,2.59499694]
[1772426341259,1.24523506,84.545,84.499,2.59499694]
[1772426342229,1.24523506,84.545,84.489,0.14216157]
[1772426342230,1.24530651,84.539,84.501,2.59499694]
[1772426342430,29.57040121,84.544,84.5,11.83431952]
[1772426342431,1.24530651,84.529,84.5,11.83431952]
[1772426343157,1.24530651,84.529,84.501,2.59499694]
[1772426343461,1.24537714,84.539,84.501,2.59499694]
[1772426344348,1.24544695,84.537,84.503,2.59499694]
[1772426346459,1.24544695,84.537,84.504,11.83375934]
[1772426346639,1.24544695,84.537,84.505,2.59499694]
[1772426349433,1.24578418,84.545,84.507,2.59499694]
[1772426351858,1.24597737,84.543,84.509,2.59499694]
[1772426352156,11.82816048,84.544,84.489,3.69383402]
[1772426352157,1.24597737,84.515,84.489,3.69383402]
[1772426352360,1.24597737,84.515,84.483,11.83657073]
[1772426352755,1.24604029,84.509,84.477,11.83752308]
[1772426352961,1.24604029,84.509,84.477,14.43252002]
[1772426353750,1.24616398,84.499,84.465,2.482695]
[1772426354145,1.24616398,84.497,84.465,2.482695]
[1772426355262,1.24622475,84.503,84.467,2.482695]
[1772426355467,1.24622475,84.509,84.467,2.482695]
[1772426357077,1.24640293,84.506,84.467,2.482695]
[1772426357247,1.24640293,84.506,84.449,3.69383402]
[1772426357248,1.24640293,84.499,84.463,2.45957822]
[1772426358040,4.6093007,84.52,84.466,2.45957822]
[1772426358239,0.28432314,84.528,84.468,2.45957822]
[1772426358440,1.24646097,84.525,84.468,2.45957822]
[1772426359858,1.24646097,84.525,84.472,3.69383402]
[1772426360170,1.24646097,84.525,84.477,2.45957822]
[1772426360464,11.83095925,84.524,84.477,2.45957822]
[1772426360655,1.2466311,84.523,84.477,2.45957822]
[1772426361866,1.2466311,84.523,84.469,41.57748103]
[1772426361867,13.07792571,84.522,84.479,2.45957822]
[1772426362166,4.6093007,84.51,84.479,2.45957822]
[1772426362375,1.24668651,84.509,84.479,2.45957822]
[1772426363577,1.24679543,84.499,84.472,2.45957822]
[1772426363750,1.24679543,84.516,84.472,2.45957822]
[1772426363954,1.24679543,84.514,84.474,2.45957822]
[1772426364162,1.24679543,84.509,84.474,2.45957822]
[1772426364371,1.24679543,84.499,84.474,2.45957822]
[1772426365462,1.24684896,84.497,84.474,2.45957822]
[1772426366672,1.24684896,84.497,84.475,14.29740006]
[1772426367356,11.83487975,84.496,84.475,2.45957822]
[1772426367558,1.24700588,84.495,84.471,11.83835813]
[1772426367773,1.24700588,84.495,84.449,0.14216157]
[1772426367774,1.24700588,84.489,84.461,2.45957822]
[1772426367959,1.24700588,84.489,84.462,11.83964386]
[1772426368673,1.24705698,84.485,84.452,2.45957822]
[1772426368865,1.24705698,84.479,84.452,2.45957822]
[1772426370072,1.24705698,84.479,84.453,11.84090559]
[1772426370278,1.53143064,84.486,84.454,2.45957822]
[1772426371377,1.53143064,84.486,84.456,2.45957822]
[1772426371558,1.24715745,84.484,84.456,2.45957822]
[1772426373074,12.12021987,84.489,84.458,2.45957822]
[1772426373270,11.83445957,84.499,84.458,2.45957822]
[1772426373471,1.24725561,84.498,84.458,2.45957822]
[1772426373653,1.24730385,84.496,84.458,2.45957822]
[1772426374878,1.24735154,84.489,84.457,11.84034479]
[1772426375082,1.24735154,84.485,84.457,11.84034479]
[1772426375272,11.83656076,84.484,84.453,11.84090559]
[1772426375478,1.24735154,84.483,84.454,2.45957822]
[1772426376361,13.08423966,84.482,84.456,2.45957822]
[1772426377062,1.24744527,84.481,84.456,2.45957822]
[1772426377376,11.83712121,84.48,84.456,2.45957822]
[1772426377577,1.24744527,84.479,84.45,2.45957822]
[1772426380663,1.24762637,84.477,84.45,2.45957822]
[1772426381479,1.24762637,84.465,84.431,2.45957822]
[1772426381863,1.24767035,84.459,84.431,2.45957822]
[1772426382383,1.53199349,84.469,84.431,2.45957822]
[1772426382566,1.53203697,84.467,84.433,2.45957822]
[1772426384773,1.53203697,84.467,84.435,2.45957822]
[1772426384973,13.36944893,84.479,84.435,2.45957822]
[1772426385278,1.24779929,84.475,84.435,2.45957822]
[1772426387480,13.08575245,84.475,84.437,2.49596521]
[1772426387784,1.24796439,84.474,84.437,2.49596521]
[1772426388468,11.83810211,84.473,84.438,11.84300907]
[1772426388669,1.24800449,84.472,84.439,2.49596521]
[1772426388877,1.24800449,84.469,84.439,2.49596521]
[1772426389076,1.24800449,84.469,84.438,11.84300907]
[1772426389878,1.24804413,84.465,84.438,11.84300907]
[1772426391289,1.24808331,84.463,84.438,2.49596521]
[1772426393380,1.24808331,84.463,84.439,2.49596521]
[1772426394086,1.24819818,84.461,84.439,2.49596521]
[1772426394279,1.24819818,84.459,84.432,2.49596521]
[1772426395896,0.28432314,84.477,84.434,2.49596521]
[1772426396395,1.53259572,84.477,84.434,2.49596521]
[1772426396776,13.37013729,84.477,84.434,2.49596521]
[1772426397780,13.37013729,84.477,84.436,2.49596521]
[1772426398993,13.37013729,84.477,84.437,41.45102265]
[1772426399293,13.37013729,84.477,84.438,2.49596521]
[1772426400490,4.61579782,84.51,84.442,0.14216157]
[1772426400491,1.39057789,84.499,84.442,0.14216157]
[1772426400794,1.24845122,84.495,84.447,2.49596521]
[1772426401481,1.24845122,84.493,84.449,2.49596521]
[1772426403500,1.24845122,84.493,84.45,41.44464179]
[1772426403806,1.24845122,84.493,84.451,2.49596521]
[1772426404984,1.24845122,84.493,84.437,59.21574665]
[1772426404985,11.83165915,84.519,84.458,2.49596521]
[1772426405291,1.24858689,84.518,84.458,2.49596521]
[1772426406109,1.24861984,84.516,84.458,2.49596521]
[1772426407299,1.24865241,84.514,84.465,2.49596521]
[1772426409585,1.24871643,84.512,84.467,2.49596521]
[1772426411394,0.28432314,84.517,84.467,2.49596521]
[1772426411589,11.83207913,84.516,84.468,41.43581001]
[1772426411794,1.24880974,84.515,84.469,2.49596521]
[1772426412390,1.24880974,84.509,84.469,2.49596521]
[1772426414010,1.24889986,84.508,84.471,2.46489214]
[1772426415512,1.24892921,84.506,84.473,2.46489214]
[1772426417812,1.24892921,84.506,84.475,2.45726688]
[1772426420014,1.24892921,84.506,84.477,2.45726688]
[1772426420920,1.24892921,84.506,84.479,2.45726688]
[1772426423019,1.24892921,84.506,84.481,2.45726688]
[1772426424212,1.24920483,84.523,84.481,2.45726688]
[1772426424796,11.8312392,84.522,84.481,2.45726688]
[1772426424998,11.8312392,84.522,84.483,2.45726688]
[1772426425512,11.8312392,84.522,84.482,41.42894343]
[1772426425513,1.24925624,84.529,84.485,2.45726688]
[1772426425905,1.24925624,84.529,84.487,2.45726688]
[1772426427096,1.24925624,84.529,84.488,41.42600131]
[1772426427292,1.24925624,84.529,84.489,2.45726688]
[1772426428118,11.83039939,84.528,84.489,2.45726688]
[1772426428317,1.24930647,84.541,84.491,2.45726688]
[1772426428503,1.24930647,84.544,84.496,2.45726688]
[1772426429002,1.24930647,84.544,84.498,2.45726688]
[1772426429318,1.24933115,84.539,84.498,2.45726688]
[1772426430616,1.24935555,84.537,84.5,2.45726688]
[1772426431119,1.24937967,84.529,84.5,2.45726688]
[1772426431318,4.61579782,84.53,84.49,2.45726688]
[1772426431319,1.24937967,84.519,84.49,2.45726688]
[1772426432320,1.24940352,84.517,84.478,2.45726688]
[1772426432521,12.11612228,84.518,84.478,2.45726688]
[1772426432522,1.24940352,84.509,84.478,2.45726688]
[1772426433910,1.24945038,84.508,84.48,2.45726688]
[1772426436334,1.24945038,84.508,84.482,2.45726688]
[1772426437917,11.83333925,84.507,84.482,2.45726688]
[1772426438125,1.24954093,84.506,84.482,2.45726688]
[1772426439326,1.24954093,84.506,84.469,33.29045912]
[1772426439327,1.24954093,84.506,84.483,11.83670087]
[1772426439514,1.24954093,84.506,84.484,2.45726688]
[1772426441111,1.24954093,84.506,84.486,2.45726688]
[1772426441510,1.24962739,84.519,84.486,2.45726688]
[1772426441835,0.28432314,84.538,84.488,2.45726688]
[1772426442036,1.24962739,84.535,84.488,2.45726688]
[1772426442625,1.24964839,84.533,84.49,2.45726688]
[1772426445633,1.24970995,84.531,84.492,2.45726688]
[1772426447038,1.24972999,84.529,84.494,2.45726688]
[1772426449444,1.24978877,84.527,84.496,2.43936047]
[1772426450318,0.14216157,84.518,84.472,2.43936047]
[1772426450523,4.61579782,84.52,84.474,2.43936047]
[1772426450524,1.24980792,84.515,84.474,2.43936047]
[1772426451316,1.24980792,84.515,84.476,2.43936047]
[1772426451521,1.24980792,84.515,84.478,2.43936047]
[1772426451721,13.08078614,84.525,84.478,2.43936047]
[1772426452047,1.24984555,84.536,84.478,2.43936047]
[1772426453633,11.97130147,84.537,84.48,2.58152204]
[1772426453634,1.24988232,84.534,84.48,2.58152204]
[1772426453836,1.24988232,84.525,84.48,2.43936047]
[1772426455549,1.24991825,84.507,84.468,14.27816333]
[1772426455730,1.24991825,84.497,84.468,14.27816333]
[1772426455930,1.24991825,84.497,84.469,2.43936047]
[1772426457232,4.61579782,84.49,84.469,2.43936047]
[1772426457459,1.24993591,84.489,84.469,2.43936047]
[1772426457944,1.24995336,84.495,84.471,2.43936047]
[1772426459129,1.24995336,84.495,84.473,2.43936047]
[1772426460758,1.25000453,84.501,84.473,2.43936047]
[1772426462258,1.25000453,84.501,84.475,2.43936047]
[1772426462759,1.25003767,84.529,84.477,2.43936047]
[1772426462940,1.25003767,84.525,84.477,2.43936047]
[1772426464355,11.83095925,84.524,84.479,2.43936047]
[1772426464654,11.83095925,84.524,84.478,41.57306665]
[1772426464655,11.83035081,84.529,84.487,2.43936047]
[1772426466045,1.25005395,84.531,84.487,2.43936047]
[1772426466360,1.25008596,84.55,84.498,0.14216157]
[1772426466542,1.25010169,84.548,84.507,2.43936047]
[1772426466954,1.25010169,84.546,84.507,2.43936047]
[1772426467338,1.25010169,84.539,84.507,2.43936047]
[1772426467541,1.25011724,84.535,84.507,2.43936047]
[1772426467959,1.25011724,84.529,84.497,2.43936047]
[1772426468261,1.25011724,84.519,84.492,2.43936047]
[1772426468446,4.61357295,84.52,84.492,2.43936047]
[1772426468447,1.25011724,84.517,84.492,2.43936047]
[1772426469760,1.25014781,84.515,84.492,2.43936047]
[1772426474255,1.25014781,84.515,84.493,11.83529996]
[1772426474465,1.25014781,84.515,84.494,2.54631389]
[1772426479065,1.25014781,84.515,84.496,2.37801195]
[1772426479265,0.28432314,84.526,84.496,2.37801195]
[1772426479467,1.25030386,84.527,84.496,2.37801195]
[1772426480850,1.25030386,84.527,84.498,2.37801195]
[1772426481546,1.25034309,84.525,84.498,2.37801195]
[1772426483067,1.25035587,84.538,84.5,2.37801195]
[1772426483264,1.25035587,84.536,84.5,2.37801195]
[1772426485381,1.25038098,84.534,84.502,2.37801195]
[1772426487580,1.25041759,84.532,84.504,2.37801195]
[1772426490574,1.25045294,84.53,84.504,2.37801195]
[1772426491356,1.25045294,84.53,84.505,11.83361931]
[1772426491556,1.25045294,84.53,84.506,2.37801195]
[1772426496482,11.83025943,84.529,84.506,2.37801195]
[1772426496683,13.08077951,84.529,84.506,2.37801195]
[1772426496864,1.25052008,84.528,84.508,2.37801195]
[1772426502061,1.25057258,84.526,84.508,2.37801195]
[1772426502266,1.25057258,84.526,84.489,2.37801195]
[1772426503180,1.25057258,84.526,84.489,11.83586028]
[1772426503373,1.25057258,84.526,84.49,2.37801195]
[1772426504280,1.25057258,84.526,84.492,2.37801195]
[1772426504481,1.25057258,84.526,84.494,2.37801195]
[1772426506485,1.25057258,84.526,84.496,2.37801195]
[1772426508785,1.25057258,84.526,84.498,2.60172838]
[1772426511466,1.25057258,84.526,84.5,2.60172838]
[1772426512493,11.83022704,84.53,84.5,2.60172838]
[1772426512794,1.25068687,84.529,84.5,2.60172838]
[1772426514093,1.2506957,84.534,84.502,2.60172838]
[1772426515192,1.2506957,84.534,84.504,2.60172838]
[1772426516373,1.2506957,84.534,84.506,2.60172838]
[1772426518391,1.25073001,84.54,84.508,2.60172838]
[1772426518593,11.82800215,84.546,84.508,2.60172838]
[1772426518788,1.25073834,84.545,84.508,2.60172838]
[1772426520792,11.82816048,84.544,84.509,11.8330592]
[1772426521002,1.25075472,84.543,84.51,2.60172838]
[1772426521902,1.25076277,84.539,84.51,2.60172838]
[1772426523098,1.25077073,84.537,84.51,2.60172838]
[1772426524804,1.25078637,84.535,84.51,2.60172838]
[1772426526300,1.25079406,84.533,84.51,2.60172838]
[1772426528392,1.25080916,84.531,84.505,2.60172838]
[1772426528697,1.25080916,84.529,84.505,2.60172838]
[1772426531101,11.83039939,84.528,84.505,2.60172838]
[1772426531306,1.25083118,84.527,84.505,2.60172838]
[1772426532105,1.25083835,84.519,84.463,3.02821309]
[1772426532412,1.25083835,84.509,84.463,3.02821309]
[1772426532888,1.25083835,84.509,84.463,2.74388995]
[1772426533287,1.25084544,84.507,84.468,2.60172838]
[1772426534381,1.25085937,84.505,84.47,2.50745595]
[1772426534908,1.25085937,84.505,84.473,2.50745595]
[1772426537302,1.25085937,84.505,84.474,11.83796197]
[1772426537504,1.25085937,84.505,84.475,2.45162005]
[1772426537809,1.25085937,84.505,84.478,2.45162005]
[1772426538611,1.25085937,84.505,84.48,2.45162005]
[1772426539501,1.25089929,84.503,84.468,2.45162005]
[1772426539806,11.83375934,84.504,84.467,15.53268594]
[1772426539807,1.25090568,84.489,84.467,3.69383402]
[1772426540313,1.25090568,84.489,84.458,2.45162005]
[1772426540525,1.25090568,84.479,84.433,29.60917475]
[1772426540691,1.250912,84.469,84.435,2.45162005]
[1772426542715,1.25092441,84.467,84.439,2.45162005]
[1772426543212,0.28432314,84.487,84.439,2.45162005]
[1772426543514,1.53524755,84.487,84.439,2.45162005]
[1772426544093,13.37138802,84.487,84.439,2.45162005]
[1772426544412,1.25093051,84.486,84.441,2.45162005]
[1772426544610,4.60939793,84.48,84.441,2.45162005]
[1772426544804,1.25093654,84.485,84.441,2.45162005]
[1772426545815,1.2509425,84.483,84.443,2.45162005]
[1772426546413,1.2509425,84.479,84.443,2.45162005]
[1772426546606,1.25094839,84.469,84.43,2.45162005]
[1772426547018,1.25094839,84.459,84.431,2.45162005]
[1772426548110,11.84020459,84.458,84.432,11.84385067]
[1772426548318,1.25094839,84.459,84.433,2.45162005]
[1772426548520,11.84020459,84.458,84.433,2.45162005]
[1772426548830,1.25095998,84.466,84.433,2.45162005]
[1772426550120,1.25095998,84.466,84.434,11.84357012]
[1772426550327,1.25096567,84.464,84.435,2.45162005]
[1772426553702,1.25096567,84.464,84.437,2.45162005]
[1772426556102,1.25099847,84.462,84.437,2.45162005]
[1772426557810,1.25100891,84.459,84.437,2.45162005]
[1772426558012,0.28432314,84.474,84.409,0.14216157]
[1772426558013,1.25100891,84.447,84.417,11.84595519]
[1772426558717,1.25101404,84.439,84.409,2.45162005]
[1772426558905,1.48518457,84.429,84.38,0.1]
[1772426559326,1.48518457,84.429,84.401,11.84820085]
[1772426559526,1.48518457,84.429,84.38,0.1]
[1772426559527,1.48518457,84.425,84.38,0.1]
[1772426559833,1.48518964,84.419,84.38,0.1]
[1772426560125,4.60939793,84.42,84.38,0.1]
[1772426560126,1.48518964,84.417,84.38,0.1]
[1772426561032,1.48518964,84.417,84.394,2.45162005]
[1772426562524,1.48519961,84.415,84.394,2.45162005]
[1772426563713,1.48519961,84.415,84.39,11.94971286]
[1772426564515,1.48520934,84.413,84.39,11.94971286]
[1772426564919,1.48520934,84.413,84.391,2.45162005]
[1772426565727,1.48520934,84.413,84.395,2.45162005]
[1772426566242,11.84665687,84.412,84.395,2.45162005]
[1772426566420,11.84665687,84.412,84.39,0.1]
[1772426566421,1.48520697,84.411,84.39,2.55162005]
[1772426566621,1.48520581,84.416,84.394,2.45162005]
[1772426568043,1.48520352,84.414,84.394,2.45162005]
[1772426568229,1.38520352,84.409,84.39,0.1]
[1772426569119,1.38520352,84.409,84.39,2.70192468]
[1772426570123,11.84707791,84.409,84.39,2.70192468]
[1772426572437,1.38519909,84.399,84.39,0.1]
[1772426573916,1.38519909,84.399,84.38,0.1]
[1772426574122,11.84707791,84.409,84.38,0.1]
[1772426574123,1.56952067,84.396,84.38,0.1]
[1772426574333,11.84904318,84.395,84.38,0.1]
[1772426574538,1.28519753,84.394,84.38,0.1]
[1772426574741,4.60939793,84.39,84.38,0.1]
[1772426575037,29.61769479,84.409,84.381,2.60192468]
[1772426575038,11.84717948,84.409,84.381,2.60192468]
[1772426575243,1.56952019,84.407,84.381,2.60192468]
[1772426576523,1.28519657,84.405,84.381,2.60192468]
[1772426578723,1.28519518,84.427,84.382,2.60192468]
[1772426579032,1.28519518,84.425,84.382,2.60192468]
[1772426580119,1.28519518,84.425,84.384,2.60192468]
[1772426580321,13.13015795,84.424,84.384,2.60192468]
[1772426580522,1.28518496,84.423,84.384,2.60192468]
[1772426582048,1.28516486,84.436,84.387,2.60192468]
[1772426582238,1.28516486,84.449,84.393,0.14216157]
[1772426582439,1.28516486,84.447,84.398,2.60192468]
[1772426582638,1.28515498,84.439,84.398,2.60192468]
[1772426582839,1.28515498,84.435,84.398,2.60192468]
[1772426583146,1.28515498,84.429,84.398,2.60192468]
[1772426583345,1.56947812,84.439,84.398,2.60192468]
[1772426583544,1.28515498,84.439,84.398,2.60192468]
[1772426584546,1.28515498,84.439,84.4,2.60192468]
[1772426584734,1.28513557,84.435,84.4,2.60192468]
[1772426585347,11.84300907,84.438,84.4,2.60192468]
[1772426585845,13.1281351,84.438,84.4,2.60192468]
[1772426586030,1.28512603,84.437,84.4,2.60192468]
[1772426586645,1.28512603,84.437,84.401,11.84820085]
[1772426586834,1.28512603,84.437,84.402,2.60192468]
[1772426589363,11.84328959,84.436,84.404,2.60192468]
[1772426589557,1.28509807,84.435,84.404,2.60192468]
[1772426590435,1.28508896,84.44,84.404,2.60192468]
[1772426591362,1.28508896,84.44,84.406,2.60192468]
[1772426592335,1.28507106,84.438,84.406,2.60192468]
[1772426593344,1.28507106,84.438,84.408,2.60192468]
[1772426595239,1.28503647,84.459,84.408,2.60192468]
[1772426595461,59.18082401,84.487,84.41,2.52157656]
[1772426595462,1.28503647,84.449,84.41,2.52157656]
[1772426598650,1.28499542,84.447,84.412,2.54212144]
[1772426599654,1.28499542,84.439,84.412,2.54212144]
[1772426603149,1.28496425,84.437,84.414,2.54212144]
[1772426605767,11.84328959,84.436,84.414,2.54212144]
[1772426605967,1.28494179,84.435,84.414,2.54212144]
[1772426609566,1.28494179,84.435,84.416,2.54212144]
[1772426612470,1.42706073,84.449,84.418,2.54212144]
[1772426612668,1.28489916,84.449,84.418,2.54212144]
[1772426612852,13.12649899,84.448,84.42,2.54212144]
[1772426613049,1.28489233,84.447,84.42,2.54212144]
[1772426615188,1.28487892,84.445,84.42,2.54212144]
[1772426616462,1.28487233,84.443,84.42,2.54212144]
[1772426619658,11.84244807,84.442,84.42,2.54212144]
[1772426619865,1.28484671,84.441,84.42,2.54212144]
[1772426622266,1.28483434,84.439,84.42,2.54212144]
[1772426625164,1.28481631,84.444,84.422,2.54212144]
[1772426627173,1.2847989,84.442,84.422,2.54212144]
[1772426628181,1.28479323,84.44,84.422,2.54212144]
[1772426630182,1.28478208,84.438,84.417,11.84591709]
[1772426630381,1.28478208,84.438,84.412,11.84660666]
[1772426630685,1.28478208,84.438,84.412,14.33725841]
[1772426630884,1.28478208,84.438,84.413,2.49065175]
[1772426631662,11.84314933,84.437,84.413,2.49065175]
[1772426631867,11.84314933,84.437,84.415,2.49065175]
[1772426632276,1.28477119,84.441,84.415,2.49065175]
[1772426634885,1.28477119,84.441,84.417,2.49065175]
[1772426637787,1.28477119,84.441,84.419,2.49065175]
[1772426640568,1.28472516,84.456,84.421,2.49065175]
[1772426640887,0.28432314,84.447,84.421,2.49065175]
[1772426641187,1.5690483,84.447,84.421,2.49065175]
[1772426641791,1.28472033,84.46,84.421,2.49065175]
[1772426642087,1.28472033,84.464,84.421,2.49065175]
[1772426642688,1.28472033,84.464,84.425,2.49065175]
[1772426642892,13.12421924,84.463,84.427,2.49065175]
[1772426643100,1.28471556,84.462,84.427,2.49065175]
[1772426643896,1.28471085,84.456,84.427,2.49065175]
[1772426645301,1.28471085,84.456,84.399,0.14216157]
[1772426645302,1.28471085,84.456,84.429,2.49065175]
[1772426645674,11.84029866,84.458,84.429,2.49065175]
[1772426646990,1.28469703,84.462,84.429,2.49065175]
[1772426647198,11.83955701,84.463,84.429,2.49065175]
[1772426647996,11.83897473,84.467,84.431,2.49065175]
[1772426648394,13.12366726,84.467,84.431,2.49065175]
[1772426649284,1.28468808,84.466,84.433,2.49065175]
[1772426650295,1.28468368,84.464,84.435,2.49065175]
[1772426652903,4.61647764,84.48,84.437,2.49065175]
[1772426652904,1.28467078,84.462,84.437,2.49065175]
[1772426653105,1.28467078,84.462,84.431,2.49065175]
[1772426654400,4.61647764,84.47,84.433,2.59985668]
[1772426654401,1.28466243,84.46,84.433,2.59985668]
[1772426654805,29.59090999,84.486,84.434,2.59985668]
[1772426655193,0.28432314,84.485,84.434,2.59985668]
[1772426656409,0.28432314,84.483,84.436,2.61042567]
[1772426657788,0.28432314,84.479,84.438,2.61042567]
[1772426659409,0.28432314,84.481,84.438,2.61042567]
[1772426660410,0.28432314,84.479,84.44,2.61042567]
[1772426664704,0.28432314,84.477,84.442,2.61042567]
[1772426666813,11.8376817,84.476,84.444,2.61042567]
[1772426668846,0.28432314,84.479,84.446,2.61042567]
[1772426670797,0.28432314,84.477,84.448,2.61042567]
[1772426673504,0.28432314,84.477,84.437,29.60787332]
[1772426673505,11.8376817,84.476,84.45,2.61042567]
[1772426676354,0.28432314,84.479,84.452,2.61042567]
[1772426678506,11.8345914,84.499,84.454,2.61042567]
[1772426679001,0.28432314,84.498,84.454,2.61042567]
[1772426679201,0.28432314,84.489,84.454,2.61042567]
[1772426679406,4.61647764,84.48,84.454,2.61042567]
[1772426679724,4.61647764,84.46,84.43,2.61042567]
[1772426679911,4.61647764,84.45,84.395,2.61042567]
[1772426680109,4.61647764,84.45,84.396,0.14216157]
[1772426680308,4.61647764,84.45,84.405,2.61042567]
[1772426680529,4.61647764,84.45,84.407,2.61042567]
[1772426680530,11.84146644,84.449,84.407,2.61042567]
[1772426682206,11.84146644,84.449,84.412,2.61042567]
[1772426682725,12.12438754,84.459,84.412,2.61042567]
[1772426682917,29.59617497,84.471,84.414,2.61042567]
[1772426682918,11.83944204,84.464,84.414,2.61042567]
[1772426683108,11.83944204,84.464,84.418,2.61042567]
[1772426683914,4.61647764,84.46,84.42,2.61042567]
[1772426686942,11.8400644,84.459,84.422,2.61042567]
[1772426689232,0.28432314,84.469,84.424,2.61042567]
[1772426690423,0.28432314,84.467,84.426,2.61042567]
[1772426691722,4.61647764,84.46,84.426,2.61042567]
[1772426693116,41.72454856,84.459,84.426,2.61042567]
[1772426693320,41.72454856,84.459,84.427,2.61042567]
[1772426695248,12.12438754,84.459,84.427,2.61042567]
[1772426696144,12.12438754,84.459,84.429,2.61042567]
[1772426699842,12.12438754,84.459,84.423,2.61042567]
[1772426700347,0.28432314,84.449,84.414,2.61042567]
[1772426702756,0.28432314,84.447,84.416,2.61042567]
[1772426704651,11.84188712,84.446,84.418,2.61042567]
[1772426706151,4.61917816,84.44,84.412,14.45697474]
[1772426706373,4.61917816,84.44,84.413,2.61042567]
[1772426706537,11.84286881,84.439,84.413,2.61042567]
[1772426707132,11.84286881,84.439,84.395,2.61042567]
[1772426707133,4.61917816,84.42,84.395,2.61042567]
[1772426707354,0.28432314,84.429,84.395,2.61042567]
[1772426709052,0.28432314,84.449,84.397,2.61042567]
[1772426709749,41.72945569,84.449,84.397,2.61042567]
[1772426709947,41.87161726,84.449,84.397,2.61042567]
[1772426710146,41.72945569,84.449,84.397,2.61042567]
[1772426712758,41.72945569,84.449,84.399,2.61042567]
[1772426713454,11.84146644,84.449,84.402,2.61042567]
[1772426713849,0.28432314,84.448,84.402,2.61042567]
[1772426714649,0.14216157,84.448,84.402,2.61042567]
[1772426715442,41.44045451,84.459,84.407,2.61042567]
[1772426718148,0.28432314,84.449,84.409,2.61042567]
[1772426721389,0.28432314,84.447,84.411,2.61042567]
[1772426723848,11.84188712,84.446,84.411,2.61042567]
[1772426724044,4.61917816,84.44,84.411,2.61042567]
[1772426724248,11.84188712,84.446,84.413,2.61042567]
[1772426725477,11.84188712,84.446,84.415,2.61042567]
[1772426726348,11.84188712,84.446,84.421,2.61042567]
[1772426736075,11.84188712,84.446,84.412,2.61042567]
[1772426738361,11.84188712,84.446,84.414,2.61042567]
[1772426740478,0.28432314,84.439,84.404,2.61042567]
[1772426740991,0.28432314,84.439,84.4,4.61986973]
[1772426740992,11.84188712,84.446,84.411,2.61042567]
[1772426742388,0.28432314,84.445,84.411,2.61042567]
[1772426742573,0.28432314,84.439,84.411,2.61042567]
[1772426744468,0.28432314,84.437,84.411,2.61042567]
[1772426744669,0.28432314,84.437,84.404,2.61042567]
[1772426745587,0.28432314,84.429,84.404,2.61042567]
[1772426747191,0.28432314,84.427,84.404,2.61042567]
[1772426747883,0.28432314,84.427,84.399,2.61042567]
[1772426749088,0.28432314,84.419,84.384,11.85054834]
[1772426749269,4.61986973,84.41,84.384,11.85054834]
[1772426749585,4.61986973,84.41,84.385,2.61042567]
[1772426749785,0.28432314,84.417,84.385,2.61042567]
[1772426750573,29.6074948,84.439,84.39,4.61986973]
[1772426750776,0.28432314,84.429,84.401,2.61042567]
[1772426750979,11.84121837,84.451,84.42,4.61986973]
[1772426751166,4.61986973,84.46,84.421,2.61042567]
[1772426751492,0.42648471,84.459,84.421,2.61042567]
[1772426751872,41.86671013,84.459,84.421,2.61042567]
[1772426752972,0.28432314,84.449,84.421,2.61042567]
[1772426755998,0.28432314,84.447,84.421,2.61042567]
[1772426756195,0.28432314,84.447,84.414,11.84625038]
[1772426756409,0.28432314,84.439,84.415,2.61042567]
[1772426758108,0.28432314,84.437,84.415,2.61042567]
[1772426758401,0.28432314,84.437,84.41,2.61042567]